Workbook

Sheet Apoio Cativo (hidden)
A6: Apoio
A7: =$B$1&"Residencial"&B7 -> Residencial
A8: =$B$1&"Residencial"&B8 -> Residencial
A9: Residencial
A10: Residencial
A11: Residencial
A12: Residencial
A13: Residencial
A14: Residencial
A15: Residencial
A16: Residencial
A17: Residencial
A18: Residencial
A24: Apoio
A25: =$B$1&"Industrial"&B25 -> Industrial
A26: =$B$1&"Industrial"&B26 -> Industrial
A27: Industrial
A28: Industrial
A29: Industrial
A30: Industrial
A31: Industrial
A32: Industrial
A33: Industrial
A34: Industrial
A35: Industrial
A36: Industrial
A42: Apoio
A43: =$B$1&"Comercial"&B43 -> Comercial
A44: =$B$1&"Comercial"&B44 -> Comercial
A45: Comercial
A46: Comercial
A47: Comercial
A48: Comercial
A49: Comercial
A50: Comercial
A51: Comercial
A52: Comercial
A53: Comercial
A54: Comercial
A60: Apoio
A61: =$B$1&"Rural"&B61 -> Rural
A62: =$B$1&"Rural"&B62 -> Rural
A63: Rural
A64: Rural
A65: Rural
A66: Rural
A67: Rural
A68: Rural
A69: Rural
A70: Rural
A71: Rural
A72: Rural
A78: Apoio
A79: =$B$1&"Poder Público"&B79 -> Poder Público
A80: =$B$1&"Poder Público"&B80 -> Poder Público
A81: Poder Público
A82: Poder Público
A83: Poder Público
A84: Poder Público
A85: Poder Público
A86: Poder Público
A87: Poder Público
A88: Poder Público
A89: Poder Público
A90: Poder Público
A96: Apoio
A97: =$B$1&"Iluminação Pública"&B97 -> Iluminação Pública
A98: =$B$1&"Iluminação Pública"&B98 -> Iluminação Pública
A99: Iluminação Pública
A100: Iluminação Pública
A101: Iluminação Pública
A102: Iluminação Pública
A103: Iluminação Pública
A104: Iluminação Pública
A105: Iluminação Pública
A106: Iluminação Pública
A107: Iluminação Pública
A108: Iluminação Pública
A114: Apoio
A115: =$B$1&"Serviço Público"&B115 -> Serviço Público
A116: =$B$1&"Serviço Público"&B116 -> Serviço Público
A117: Serviço Público
A118: Serviço Público
A119: Serviço Público
A120: Serviço Público
A121: Serviço Público
A122: Serviço Público
A123: Serviço Público
A124: Serviço Público
A125: Serviço Público
A126: Serviço Público
A132: Apoio
A133: =$B$1&"Próprio"&B133 -> Próprio
A134: =$B$1&"Próprio"&B134 -> Próprio
A135: Próprio
A136: Próprio
A137: Próprio
A138: Próprio
A139: Próprio
A140: Próprio
A141: Próprio
A142: Próprio
A143: Próprio
A144: Próprio
A150: Apoio
A151: =$B$1&"Outros"&B151 -> Outros
A152: =$B$1&"Outros"&B152 -> Outros
A153: Outros
A154: Outros
A155: Outros
A156: Outros
A157: Outros
A158: Outros
A159: Outros
A160: Outros
A161: Outros
A162: Outros

Sheet Apoio Livre (hidden)
A6: Apoio
A7: =$C$1&B7 -> 
A8: =$C$1&B8 -> 
A24: Apoio
A25: =$C$1&B25 -> 
A26: =$C$1&B26 -> 
A42: Apoio
A43: =$C$1&B43 -> 
A44: =$C$1&B44 -> 
A60: Apoio
A61: =$C$1&B61 -> 
A62: =$C$1&B62 -> 
A78: Apoio
A79: =$C$1&B79 -> 
A80: =$C$1&B80 -> 
A96: Apoio
A97: =$C$1&B97 -> 
A98: =$C$1&B98 -> 
A114: Apoio
A115: =$C$1&B115 -> 
A116: =$C$1&B116 -> 
A132: Apoio
A133: =$C$1&B133 -> 
A134: =$C$1&B134 -> 
A150: Apoio
A151: =$C$1&B151 -> 
A152: =$C$1&B152 -> 

Sheet Por Segmento
B2: Descrição Valores em GWh | C2: Mês | F2: Acumulado
C3: 2021-04-01 | D3: 2020-04-01 | E3: Var. % | F3: 4M21 | G3: 4M20 | H3: Var. %
B7: Residencial | C7: 1261.648184 | D7: 1201.987944 | E7: 4.963464093 | F7: 4857.68235 | G7: 4759.330773 | H7: 2.066500138
B8: Industrial | C8: 619.5385657 | D8: 511.452073 | E8: 21.13325928 | F8: 2463.685537 | G8: 2314.493724 | H8: 6.445980477
B9: Cativo | C9: 167.066451 | D9: 164.707925 | E9: 1.431944456 | F9: 646.87564 | G9: 718.622499 | H9: -9.983942765
B10: Livre | C10: 452.4721147 | D10: 346.744148 | E10: 30.49163693 | F10: 1816.809897 | G10: 1595.871225 | H10: 13.84439228
B11: Comercial | C11: 555.0814567 | D11: 506.8522887 | E11: 9.515428676 | F11: 2243.589236 | G11: 2358.099049 | H11: -4.856022169
B12: Cativo | C12: 464.587212 | D12: 452.945812 | E12: 2.570152917 | F12: 1875.412761 | G12: 2074.591465 | H12: -9.600863946
B13: Livre | C13: 90.49424473 | D13: 53.9064767 | E13: 67.87267553 | F13: 368.1764753 | G13: 283.5075839 | H13: 29.86477126
B14: Rural | C14: 286.5190129 | D14: 284.4768559 | E14: 0.7178640262 | F14: 1177.420018 | G14: 1152.472868 | H14: 2.164662717
B15: Cativo | C15: 280.491212 | D15: 279.274753 | E15: 0.4355778626 | F15: 1147.550327 | G15: 1125.719954 | H15: 1.939236568
B16: Livre | C16: 6.027800872 | D16: 5.202102861 | E16: 15.87238917 | F16: 29.86969132 | G16: 26.75291383 | H16: 11.65023563
B17: Outros | C17: 371.6012753 | D17: 365.645521 | E17: 1.62883284 | F17: 1531.275806 | G17: 1539.108512 | H17: -0.5089118717
B18: Cativo | C18: 354.996877 | D18: 356.111985 | E18: -0.3131340834 | F18: 1467.582223 | G18: 1501.50231 | H18: -2.259076578
B19: Livre | C19: 16.6043983 | D19: 9.533535978 | E19: 74.16830797 | F19: 63.69358314 | G19: 37.60620207 | H19: 69.36989014
B20: 1 Vendas de energia no mercado cativo | C20: 2528.789936 | D20: 2455.028419 | E20: 3.004507664 | F20: 9995.103301 | G20: 10179.767 | H20: -1.814026785
B21: 2 Energia associada aos consumidores livres (TUSD) | C21: 565.5985586 | D21: 415.3862635 | E21: 36.16207569 | F21: 2278.549647 | G21: 1943.737925 | H21: 17.2251474
B22: 3 Mercado cativo + TUSD (1+2) | C22: 3094.388495 | D22: 2870.414683 | E22: 7.802838154 | F22: 12273.65295 | G22: 12123.50493 | H22: 1.238486918
B23: 4 Fornecimento não faturado | C23: 22.264208 | D23: -92.423715 | E23: - | F23: -37.115088 | G23: -66.096887 | H23: -43.84744928
B24: 5 Mercado cativo + TUSD + fornecimento não faturado (3+4) | C24: 3116.652703 | D24: 2777.990968 | E24: 12.19088683 | F24: 12236.53786 | G24: 12057.40804 | H24: 1.485641201

Sheet Por Empresa
B2: Empresas | C2: ='Por Segmento'!C3 -> 2021-04-01 | G2: ='Por Segmento'!F3 -> 4M21
C3: Vendas de energia (GWh) | G3: Vendas de energia (GWh)
C4: Mercado Cativo + TUSD | D4: Var. (1) (%) | E4: Mercado Cativo + TUSD + Não Faturado | F4: Var. (1) (%) | G4: Mercado Cativo + TUSD | H4: Var. (1) (%) | I4: Mercado Cativo + TUSD + Não Faturado | J4: Var. (1) (%)
B9: Região Norte | C9: 573.2601227 | D9: 7.20860111 | E9: 587.4175397 | F9: 13.13542425 | G9: 2160.237042 | H9: -1.290709511 | I9: 2171.857784 | J9: 0.2000984756
B10: Energisa Tocantins (ETO) | C10: 212.5393018 | D10: 11.1364658 | E10: 221.7299488 | F10: 18.7602415 | G10: 782.2588446 | H10: 2.924262133 | I10: 782.8897546 | J10: 3.502775568
B11: Energisa Acre (EAC) | C11: 86.43557886 | D11: 0.4874015771 | E11: 86.96865186 | F11: 5.616829361 | G11: 350.8120474 | H11: -3.783121761 | I11: 343.2952964 | J11: -4.557405117
B12: Energisa Rondõnia (ERO) | C12: 274.285242 | D12: 6.536492897 | E12: 278.718939 | F12: 11.41231923 | G12: 1027.16615 | H12: -3.447764564 | I12: 1045.672733 | J12: -0.5483171579
B13: Região Nordeste | C13: 698.9294636 | D13: 12.84048499 | E13: 673.2892216 | F13: 12.37092751 | G13: 2798.666164 | H13: 1.95892627 | I13: 2786.85008 | J13: 1.941895499
B14: Energisa Paraíba (EPB) | C14: 385.758906 | D14: 11.77836873 | E14: 369.856769 | F14: 12.88927234 | G14: 1562.20929 | H14: 2.677533418 | I14: 1552.519354 | J14: 3.021336783
B15: Energisa Sergipe (ESE) | C15: 252.8138656 | D15: 13.53970306 | E15: 245.1392016 | F15: 10.59167673 | G15: 1001.067987 | H15: 0.3271981987 | I15: 999.1433191 | J15: -0.2890469282
B16: Energisa Borborema (EBO) | C16: 60.356692 | D16: 16.92526078 | E16: 58.293251 | F16: 16.87332115 | G16: 235.388887 | H16: 4.329286394 | I16: 235.187407 | J16: 4.650803801
B17: Região Centro-Oeste | C17: 1273.306772 | D17: 2.675176311 | E17: 1310.349837 | F17: 9.322754389 | G17: 5098.334157 | H17: 0.2637574094 | I17: 5070.763443 | J17: 0.1498920856
B18: Energisa Mato Grosso (EMT) | C18: 745.8956562 | D18: -1.319521268 | E18: 774.7355322 | F18: 4.910011722 | G18: 3074.531734 | H18: -0.06533851536 | I18: 3050.135488 | J18: -0.5446406942
B19: Energisa Mato Grosso do Sul (EMS) | C19: 527.4111156 | D19: 8.910381309 | E19: 535.6143046 | F19: 16.40488931 | G19: 2023.802423 | H19: 0.767883721 | I19: 2020.627955 | J19: 1.2168571
B20: Região Sul/Sudeste | C20: 548.8921365 | D20: 15.27159917 | E20: 545.5961045 | F20: 18.35023887 | G20: 2216.415584 | H20: 5.282752092 | I20: 2207.066552 | J20: 5.452424632
B21: Energisa Minas Gerais (EMG) | C21: 133.235759 | D21: 17.38562418 | E21: 130.638651 | F21: 19.11937281 | G21: 535.036618 | H21: 7.58131659 | I21: 535.637307 | J21: 8.215712998
B22: Energisa Nova Friburgo (ENF) | C22: 27.8466 | D22: 13.79840266 | E22: 26.793711 | F22: 10.15525299 | G22: 111.352322 | H22: 6.336152212 | I22: 110.669571 | J22: 5.659244494
B23: Energisa Sul-Sudeste (ESS) | C23: 387.8097775 | D23: 14.66870745 | E23: 388.1637425 | F23: 18.70185262 | G23: 1570.026644 | H23: 4.448865448 | I23: 1560.759674 | J23: 4.521953868
B24: Total (Distribuidoras) | C24: 3094.388495 | D24: 7.802838154 | E24: 3116.652703 | F24: 12.19088683 | G24: 12273.65295 | H24: 1.238486918 | I24: 12236.53786 | J24: 1.485641201

Sheet Por Empresa e Segmento >>>

Sheet EMG
B2: Descrição Valores em GWh | C2: Mês | F2: Acumulado
C3: ='Por Segmento'!C3 -> 2021-04-01 | D3: ='Por Segmento'!D3 -> 2020-04-01 | E3: ='Por Segmento'!E3 -> Var. % | F3: ='Por Segmento'!F3 -> 4M21 | G3: ='Por Segmento'!G3 -> 4M20 | H3: ='Por Segmento'!H3 -> Var. %
B7: Residencial | C7: 51.075952 | D7: 46.547562 | E7: =IF(OR(AND(C7<=0,D7>=0),AND(C7>=0,D7<=0),C7=D7),"-",IF((C7/D7-1)*100>0,(C7/D7-1)*100,(C7/D7-1)*100)) -> 9.728522409 | F7: 202.441335 | G7: 188.691434 | H7: =IF(OR(AND(F7<=0,G7>=0),AND(F7>=0,G7<=0),F7=G7),"-",IF((F7/G7-1)*100>0,(F7/G7-1)*100,(F7/G7-1)*100)) -> 7.28697679
B8: Industrial | C8: 35.544993 | D8: 22.65007374 | E8: =IF(OR(AND(C8<=0,D8>=0),AND(C8>=0,D8<=0),C8=D8),"-",IF((C8/D8-1)*100>0,(C8/D8-1)*100,(C8/D8-1)*100)) -> 56.93102552 | F8: 142.47927 | G8: 118.4894825 | H8: =IF(OR(AND(F8<=0,G8>=0),AND(F8>=0,G8<=0),F8=G8),"-",IF((F8/G8-1)*100>0,(F8/G8-1)*100,(F8/G8-1)*100)) -> 20.24634339
B9: Cativo Industrial | C9: 8.302267 | D9: 6.697476 | E9: 23.96113103 | F9: 34.123913 | G9: 33.873667 | H9: 0.7387626501
B10: Livre Industrial | C10: 27.242726 | D10: 15.95259774 | E10: 70.77297658 | F10: 108.355357 | G10: 84.61581549 | H10: 28.05567891
B11: Comercial | C11: 18.523716 | D11: 16.91295731 | E11: 9.523814562 | F11: 77.506042 | G11: 77.99323262 | H11: -0.6246575525
B12: Cativo Comercial | C12: 17.270924 | D12: 15.850521 | E12: 8.961238561 | F12: 72.102878 | G12: 73.356156 | H12: -1.708483743
B13: Livre Comercial | C13: 1.252792 | D13: 1.062436309 | E13: 17.91690376 | F13: 5.403164 | G13: 4.637076618 | H13: 16.52091275
B14: Rural | C14: 15.693205 | D14: 14.540467 | E14: 7.92779214 | F14: 62.187203 | G14: 58.933619 | H14: 5.52076057
B15: Cativo Rural | C15: 15.693205 | D15: 14.540467 | E15: 7.92779214 | F15: 62.187203 | G15: 58.933619 | H15: 5.52076057
B16: Livre Rural | C16: 0 | D16: 0 | E16: - | F16: 0 | G16: 0 | H16: -
B17: Outros | C17: 12.397893 | D17: 12.85156 | E17: -3.530053939 | F17: 50.422768 | G17: 53.224515 | H17: -5.264016027
B18: Cativo Outros | C18: 12.397893 | D18: 12.85156 | E18: -3.530053939 | F18: 50.422768 | G18: 53.224515 | H18: -5.264016027
B19: Livre Outros | C19: 0 | D19: 0 | E19: - | F19: 0 | G19: 0 | H19: -
B20: 1 Vendas de energia no mercado cativo | C20: 104.740241 | D20: 96.487586 | E20: 8.553074382 | F20: 421.278097 | G20: 408.079391 | H20: 3.234347603
B21: 2 Energia associada aos consumidores livres (TUSD) | C21: 28.495518 | D21: 17.01503405 | E21: 67.47258877 | F21: 113.758521 | G21: 89.25289211 | H21: 27.45639756
B22: 3 Mercado cativo + TUSD (1+2) | C22: 133.235759 | D22: 113.50262 | E22: 17.38562418 | F22: 535.036618 | G22: 497.3322831 | H22: 7.58131659
B23: ='Por Segmento'!B23 -> 4 Fornecimento não faturado | C23: -2.597108 | D23: -3.832255 | E23: -32.23029261 | F23: 0.600689 | G23: -2.360442 | H23: -
B24: 5 Mercado cativo + TUSD + fornecimento não faturado (3+4) | C24: 130.638651 | D24: 109.670365 | E24: 19.11937281 | F24: 535.637307 | G24: 494.9718411 | H24: 8.215712998

Sheet ENF
B2: Descrição Valores em GWh | C2: Mês | F2: Acumulado
C3: ='Por Segmento'!C3 -> 2021-04-01 | D3: ='Por Segmento'!D3 -> 2020-04-01 | E3: ='Por Segmento'!E3 -> Var. % | F3: ='Por Segmento'!F3 -> 4M21 | G3: ='Por Segmento'!G3 -> 4M20 | H3: ='Por Segmento'!H3 -> Var. %
B7: Residencial | C7: 14.969554 | D7: 13.877766 | E7: =IF(OR(AND(C7<=0,D7>=0),AND(C7>=0,D7<=0),C7=D7),"-",IF((C7/D7-1)*100>0,(C7/D7-1)*100,(C7/D7-1)*100)) -> 7.867174011 | F7: 58.296759 | G7: 55.189275 | H7: =IF(OR(AND(F7<=0,G7>=0),AND(F7>=0,G7<=0),F7=G7),"-",IF((F7/G7-1)*100>0,(F7/G7-1)*100,(F7/G7-1)*100)) -> 5.630593988
B8: Industrial | C8: 3.784242 | D8: 2.709574 | E8: =IF(OR(AND(C8<=0,D8>=0),AND(C8>=0,D8<=0),C8=D8),"-",IF((C8/D8-1)*100>0,(C8/D8-1)*100,(C8/D8-1)*100)) -> 39.66188043 | F8: 16.21819 | G8: 13.378325 | H8: =IF(OR(AND(F8<=0,G8>=0),AND(F8>=0,G8<=0),F8=G8),"-",IF((F8/G8-1)*100>0,(F8/G8-1)*100,(F8/G8-1)*100)) -> 21.22735843
B9: Cativo Industrial | C9: 1.756371 | D9: 1.218414 | E9: 44.15223397 | F9: 7.57103 | G9: 6.627959 | H9: 14.22867884
B10: Livre Industrial | C10: 2.027871 | D10: 1.49116 | E10: 35.9928512 | F10: 8.64716 | G10: 6.750366 | H10: 28.09912825
B11: Comercial | C11: 5.422244 | D11: 4.395917 | E11: 23.34727885 | F11: 22.291328 | G11: 21.815959 | H11: 2.178996578
B12: Cativo Comercial | C12: 5.163802 | D12: 4.221566 | E12: 22.31958472 | F12: 21.16352 | G12: 21.059913 | H12: 0.491963096
B13: Livre Comercial | C13: 0.258442 | D13: 0.174351 | E13: 48.23086762 | F13: 1.127808 | G13: 0.756046 | H13: 49.17187579
B14: Rural | C14: 0.453629 | D14: 0.405745 | E14: 11.80150094 | F14: 1.78298 | G14: 1.622406 | H14: 9.897276021
B15: Cativo Rural | C15: 0.453629 | D15: 0.405745 | E15: 11.80150094 | F15: 1.78298 | G15: 1.622406 | H15: 9.897276021
B16: Livre Rural | C16: 0 | D16: 0 | E16: - | F16: 0 | G16: 0 | H16: -
B17: Outros | C17: 3.216931 | D17: 3.081113 | E17: 4.408082404 | F17: 12.763065 | G17: 12.711311 | H17: 0.4071491918
B18: Cativo Outros | C18: 2.66988 | D18: 2.689135 | E18: -0.7160295039 | F18: 10.601367 | G18: 11.22107 | H18: -5.522672971
B19: Livre Outros | C19: 0.547051 | D19: 0.391978 | E19: 39.56165907 | F19: 2.161698 | G19: 1.490241 | H19: 45.05694045
B20: 1 Vendas de energia no mercado cativo | C20: 25.013236 | D20: 22.412626 | E20: 11.60332573 | F20: 99.415656 | G20: 95.720623 | H20: 3.860226651
B21: 2 Energia associada aos consumidores livres (TUSD) | C21: 2.833364 | D21: 2.057489 | E21: 37.70980064 | F21: 11.936666 | G21: 8.996653 | H21: 32.67896405
B22: 3 Mercado cativo + TUSD (1+2) | C22: 27.8466 | D22: 24.470115 | E22: 13.79840266 | F22: 111.352322 | G22: 104.717276 | H22: 6.336152212
B23: ='Por Segmento'!B23 -> 4 Fornecimento não faturado | C23: -1.052889 | D23: -0.146526 | E23: 618.5680357 | F23: -0.682751 | G23: 0.024691 | H23: -
B24: 5 Mercado cativo + TUSD + fornecimento não faturado (3+4) | C24: 26.793711 | D24: 24.323589 | E24: 10.15525299 | F24: 110.669571 | G24: 104.741967 | H24: 5.659244494

Sheet ESE
B2: Descrição Valores em GWh | C2: Mês | F2: Acumulado
C3: ='Por Segmento'!C3 -> 2021-04-01 | D3: ='Por Segmento'!D3 -> 2020-04-01 | E3: ='Por Segmento'!E3 -> Var. % | F3: ='Por Segmento'!F3 -> 4M21 | G3: ='Por Segmento'!G3 -> 4M20 | H3: ='Por Segmento'!H3 -> Var. %
B7: Residencial | C7: 110.491098 | D7: 98.677988 | E7: =IF(OR(AND(C7<=0,D7>=0),AND(C7>=0,D7<=0),C7=D7),"-",IF((C7/D7-1)*100>0,(C7/D7-1)*100,(C7/D7-1)*100)) -> 11.97137299 | F7: 416.531372 | G7: 405.265265 | H7: =IF(OR(AND(F7<=0,G7>=0),AND(F7>=0,G7<=0),F7=G7),"-",IF((F7/G7-1)*100>0,(F7/G7-1)*100,(F7/G7-1)*100)) -> 2.779934027
B8: Industrial | C8: 38.24386362 | D8: 33.90752832 | E8: =IF(OR(AND(C8<=0,D8>=0),AND(C8>=0,D8<=0),C8=D8),"-",IF((C8/D8-1)*100>0,(C8/D8-1)*100,(C8/D8-1)*100)) -> 12.78870953 | F8: 151.0842839 | G8: 161.7708739 | H8: =IF(OR(AND(F8<=0,G8>=0),AND(F8>=0,G8<=0),F8=G8),"-",IF((F8/G8-1)*100>0,(F8/G8-1)*100,(F8/G8-1)*100)) -> -6.606003729
B9: Cativo Industrial | C9: 15.167082 | D9: 14.127157 | E9: 7.361176775 | F9: 58.351069 | G9: 60.916446 | H9: -4.211304448
B10: Livre Industrial | C10: 23.07678162 | D10: 19.78037132 | E10: 16.66505776 | F10: 92.73321495 | G10: 100.8544279 | H10: -8.052410917
B11: Comercial | C11: 46.92188698 | D11: 38.69461469 | E11: 21.26206025 | F11: 192.2684262 | G11: 197.9799582 | H11: -2.884904117
B12: Cativo Comercial | C12: 36.362724 | D12: 31.205787 | E12: 16.52557905 | F12: 147.121208 | G12: 159.674618 | H12: -7.861869443
B13: Livre Comercial | C13: 10.55916298 | D13: 7.48882769 | E13: 40.99887749 | F13: 45.1472182 | G13: 38.30534016 | H13: 17.86142091
B14: Rural | C14: 11.068833 | D14: 8.651409 | E14: 27.9425467 | F14: 54.709233 | G14: 46.742326 | H14: 17.04431012
B15: Cativo Rural | C15: 10.889294 | D15: 8.651409 | E15: 25.86728936 | F15: 54.027282 | G15: 46.742326 | H15: 15.58535191
B16: Livre Rural | C16: 0.179539 | D16: 0 | E16: - | F16: 0.681951 | G16: 0 | H16: -
B17: Outros | C17: 46.088184 | D17: 42.734064 | E17: 7.848820557 | F17: 186.474672 | G17: 186.04477 | H17: 0.2310744881
B18: Cativo Outros | C18: 46.088184 | D18: 42.734064 | E18: 7.848820557 | F18: 186.474672 | G18: 186.04477 | H18: 0.2310744881
B19: Livre Outros | C19: 0 | D19: 0 | E19: - | F19: 0 | G19: 0 | H19: -
B20: 1 Vendas de energia no mercado cativo | C20: 218.998382 | D20: 195.396405 | E20: 12.07902315 | F20: 862.505603 | G20: 858.643425 | H20: 0.4497999854
B21: 2 Energia associada aos consumidores livres (TUSD) | C21: 33.8154836 | D21: 27.26919901 | E21: 24.00614918 | F21: 138.5623841 | G21: 139.1597681 | H21: -0.4292791906
B22: 3 Mercado cativo + TUSD (1+2) | C22: 252.8138656 | D22: 222.665604 | E22: 13.53970306 | F22: 1001.067987 | G22: 997.8031931 | H22: 0.3271981987
B23: ='Por Segmento'!B23 -> 4 Fornecimento não faturado | C23: -7.674664 | D23: -1.004075 | E23: 664.351667 | F23: -1.924668 | G23: 4.236491 | H23: -
B24: 5 Mercado cativo + TUSD + fornecimento não faturado (3+4) | C24: 245.1392016 | D24: 221.661529 | E24: 10.59167673 | F24: 999.1433191 | G24: 1002.039684 | H24: -0.2890469282

Sheet EBO
B2: Descrição Valores em GWh | C2: Mês | F2: Acumulado
C3: ='Por Segmento'!C3 -> 2021-04-01 | D3: ='Por Segmento'!D3 -> 2020-04-01 | E3: ='Por Segmento'!E3 -> Var. % | F3: ='Por Segmento'!F3 -> 4M21 | G3: ='Por Segmento'!G3 -> 4M20 | H3: ='Por Segmento'!H3 -> Var. %
B7: Residencial | C7: 25.801267 | D7: 24.887894 | E7: =IF(OR(AND(C7<=0,D7>=0),AND(C7>=0,D7<=0),C7=D7),"-",IF((C7/D7-1)*100>0,(C7/D7-1)*100,(C7/D7-1)*100)) -> 3.669948932 | F7: 98.095071 | G7: 94.643117 | H7: =IF(OR(AND(F7<=0,G7>=0),AND(F7>=0,G7<=0),F7=G7),"-",IF((F7/G7-1)*100>0,(F7/G7-1)*100,(F7/G7-1)*100)) -> 3.647337608
B8: Industrial | C8: 12.859756 | D8: 7.073843091 | E8: =IF(OR(AND(C8<=0,D8>=0),AND(C8>=0,D8<=0),C8=D8),"-",IF((C8/D8-1)*100>0,(C8/D8-1)*100,(C8/D8-1)*100)) -> 81.79306262 | F8: 50.95869141 | G8: 41.52702757 | H8: =IF(OR(AND(F8<=0,G8>=0),AND(F8>=0,G8<=0),F8=G8),"-",IF((F8/G8-1)*100>0,(F8/G8-1)*100,(F8/G8-1)*100)) -> 22.71210917
B9: Cativo Industrial | C9: 3.929869 | D9: 3.01891 | E9: 30.17509631 | F9: 14.788079 | G9: 15.578474 | H9: -5.073635582
B10: Livre Industrial | C10: 8.929887 | D10: 4.054933091 | E10: 120.2227953 | F10: 36.17061241 | G10: 25.94855357 | H10: 39.3935593
B11: Comercial | C11: 12.979997 | D11: 11.47085677 | E11: 13.15629917 | F11: 51.98986763 | G11: 54.61668374 | H11: -4.8095489
B12: Cativo Comercial | C12: 10.063179 | D12: 9.470407 | E12: 6.25920301 | F12: 40.064637 | G12: 44.362195 | H12: -9.687433185
B13: Livre Comercial | C13: 2.916818 | D13: 2.000449766 | E13: 45.80811023 | F13: 11.92523063 | G13: 10.25448874 | H13: 16.29278582
B14: Rural | C14: 2.154832 | D14: 2.109137 | E14: 2.16652593 | F14: 8.753302 | G14: 8.639505 | H14: 1.31717037
B15: Cativo Rural | C15: 2.154832 | D15: 2.109137 | E15: 2.16652593 | F15: 8.753302 | G15: 8.639505 | H15: 1.31717037
B16: Livre Rural | C16: 0 | D16: 0 | E16: - | F16: 0 | G16: 0 | H16: -
B17: Outros | C17: 6.56084 | D17: 6.07816 | E17: 7.941219053 | F17: 25.591955 | G17: 26.19477 | H17: -2.301279988
B18: Cativo Outros | C18: 6.56084 | D18: 6.07816 | E18: 7.941219053 | F18: 25.591955 | G18: 26.19477 | H18: -2.301279988
B19: Livre Outros | C19: 0 | D19: 0 | E19: - | F19: 0 | G19: 0 | H19: -
B20: 1 Vendas de energia no mercado cativo | C20: 48.509987 | D20: 45.564508 | E20: 6.464415242 | F20: 187.293044 | G20: 189.418061 | H20: -1.121866093
B21: 2 Energia associada aos consumidores livres (TUSD) | C21: 11.846705 | D21: 6.055382857 | E21: 95.63923999 | F21: 48.09584304 | G21: 36.20304232 | H21: 32.85027988
B22: 3 Mercado cativo + TUSD (1+2) | C22: 60.356692 | D22: 51.61989086 | E22: 16.92526078 | F22: 235.388887 | G22: 225.6211033 | H22: 4.329286394
B23: ='Por Segmento'!B23 -> 4 Fornecimento não faturado | C23: -2.063441 | D23: -1.742596 | E23: 18.41189811 | F23: -0.20148 | G23: -0.885699 | H23: -77.25186548
B24: 5 Mercado cativo + TUSD + fornecimento não faturado (3+4) | C24: 58.293251 | D24: 49.87729486 | E24: 16.87332115 | F24: 235.187407 | G24: 224.7354043 | H24: 4.650803801

Sheet EPB
B2: Descrição Valores em GWh | C2: Mês | F2: Acumulado
C3: ='Por Segmento'!C3 -> 2021-04-01 | D3: ='Por Segmento'!D3 -> 2020-04-01 | E3: ='Por Segmento'!E3 -> Var. % | F3: ='Por Segmento'!F3 -> 4M21 | G3: ='Por Segmento'!G3 -> 4M20 | H3: ='Por Segmento'!H3 -> Var. %
B7: Residencial | C7: 175.998177 | D7: 170.219919 | E7: =IF(OR(AND(C7<=0,D7>=0),AND(C7>=0,D7<=0),C7=D7),"-",IF((C7/D7-1)*100>0,(C7/D7-1)*100,(C7/D7-1)*100)) -> 3.394583921 | F7: 690.033001 | G7: 665.892811 | H7: =IF(OR(AND(F7<=0,G7>=0),AND(F7>=0,G7<=0),F7=G7),"-",IF((F7/G7-1)*100>0,(F7/G7-1)*100,(F7/G7-1)*100)) -> 3.625236615
B8: Industrial | C8: 60.729854 | D8: 41.30599056 | E8: =IF(OR(AND(C8<=0,D8>=0),AND(C8>=0,D8<=0),C8=D8),"-",IF((C8/D8-1)*100>0,(C8/D8-1)*100,(C8/D8-1)*100)) -> 47.02432549 | F8: 255.1895769 | G8: 234.6075502 | H8: =IF(OR(AND(F8<=0,G8>=0),AND(F8>=0,G8<=0),F8=G8),"-",IF((F8/G8-1)*100>0,(F8/G8-1)*100,(F8/G8-1)*100)) -> 8.772960097
B9: Cativo Industrial | C9: 14.818546 | D9: 11.593279 | E9: 27.82014476 | F9: 57.778948 | G9: 58.422089 | H9: -1.100852453
B10: Livre Industrial | C10: 45.911308 | D10: 29.71271156 | E10: 54.51739541 | F10: 197.4106289 | G10: 176.1854612 | H10: 12.04705974
B11: Comercial | C11: 63.784473 | D11: 54.27744926 | E11: 17.51560523 | F11: 257.5691382 | G11: 268.9282582 | H11: -4.223847673
B12: Cativo Comercial | C12: 52.816332 | D12: 48.382435 | E12: 9.16427005 | F12: 213.72324 | G12: 233.791948 | H12: -8.584003073
B13: Livre Comercial | C13: 10.968141 | D13: 5.895014259 | E13: 86.05792146 | F13: 43.84589821 | G13: 35.13631018 | H13: 24.78799846
B14: Rural | C14: 26.822541 | D14: 23.351443 | E14: 14.86459745 | F14: 118.613928 | G14: 108.691011 | H14: 9.129473458
B15: Cativo Rural | C15: 26.822541 | D15: 23.351443 | E15: 14.86459745 | F15: 118.613928 | G15: 108.691011 | H15: 9.129473458
B16: Livre Rural | C16: 0 | D16: 0 | E16: - | F16: 0 | G16: 0 | H16: -
B17: Outros | C17: 58.423861 | D17: 55.955715 | E17: 4.41089172 | F17: 240.803646 | G17: 243.351755 | H17: -1.047088812
B18: Cativo Outros | C18: 58.423861 | D18: 55.955715 | E18: 4.41089172 | F18: 240.803646 | G18: 243.351755 | H18: -1.047088812
B19: Livre Outros | C19: 0 | D19: 0 | E19: - | F19: 0 | G19: 0 | H19: -
B20: 1 Vendas de energia no mercado cativo | C20: 328.879457 | D20: 309.502791 | E20: 6.260578762 | F20: 1320.952763 | G20: 1310.149614 | H20: 0.8245736887
B21: 2 Energia associada aos consumidores livres (TUSD) | C21: 56.879449 | D21: 35.60772581 | E21: 59.73906701 | F21: 241.2565271 | G21: 211.3217714 | H21: 14.16548593
B22: 3 Mercado cativo + TUSD (1+2) | C22: 385.758906 | D22: 345.1105168 | E22: 11.77836873 | F22: 1562.20929 | G22: 1521.471385 | H22: 2.677533418
B23: ='Por Segmento'!B23 -> 4 Fornecimento não faturado | C23: -15.902137 | D23: -17.482602 | E23: -9.040216096 | F23: -9.689936 | G23: -14.483219 | H23: -33.09542582
B24: 5 Mercado cativo + TUSD + fornecimento não faturado (3+4) | C24: 369.856769 | D24: 327.6279148 | E24: 12.88927234 | F24: 1552.519354 | G24: 1506.988166 | H24: 3.021336783

Sheet EMT
B2: Descrição Valores em GWh | C2: Mês | F2: Acumulado
C3: ='Por Segmento'!C3 -> 2021-04-01 | D3: ='Por Segmento'!D3 -> 2020-04-01 | E3: ='Por Segmento'!E3 -> Var. % | F3: ='Por Segmento'!F3 -> 4M21 | G3: ='Por Segmento'!G3 -> 4M20 | H3: ='Por Segmento'!H3 -> Var. %
B7: Residencial | C7: 286.147251 | D7: 283.166314 | E7: =IF(OR(AND(C7<=0,D7>=0),AND(C7>=0,D7<=0),C7=D7),"-",IF((C7/D7-1)*100>0,(C7/D7-1)*100,(C7/D7-1)*100)) -> 1.052715967 | F7: 1105.689795 | G7: 1098.544285 | H7: =IF(OR(AND(F7<=0,G7>=0),AND(F7>=0,G7<=0),F7=G7),"-",IF((F7/G7-1)*100>0,(F7/G7-1)*100,(F7/G7-1)*100)) -> 0.6504526124
B8: Industrial | C8: 169.4230558 | D8: 162.0909207 | E8: =IF(OR(AND(C8<=0,D8>=0),AND(C8>=0,D8<=0),C8=D8),"-",IF((C8/D8-1)*100>0,(C8/D8-1)*100,(C8/D8-1)*100)) -> 4.523470623 | F8: 664.6703194 | G8: 649.511141 | H8: =IF(OR(AND(F8<=0,G8>=0),AND(F8>=0,G8<=0),F8=G8),"-",IF((F8/G8-1)*100>0,(F8/G8-1)*100,(F8/G8-1)*100)) -> 2.333936621
B9: Cativo Industrial | C9: 39.460853 | D9: 50.789151 | E9: -22.30456264 | F9: 173.535833 | G9: 194.366991 | H9: -10.71743607
B10: Livre Industrial | C10: 129.9622028 | D10: 111.3017697 | E10: 16.76562128 | F10: 491.1344864 | G10: 455.14415 | H10: 7.907458852
B11: Comercial | C11: 132.2339869 | D11: 133.191703 | E11: -0.7190508961 | F11: 578.0196118 | G11: 607.24436 | H11: -4.81268335
B12: Cativo Comercial | C12: 106.408375 | D12: 118.566669 | E12: -10.25439451 | F12: 473.804786 | G12: 532.976324 | H12: -11.10209503
B13: Livre Comercial | C13: 25.82561187 | D13: 14.625034 | E13: 76.58496975 | F13: 104.2148258 | G13: 74.26803598 | H13: 40.32258211
B14: Rural | C14: 84.01164277 | D14: 100.1479605 | E14: -16.11247765 | F14: 396.3365756 | G14: 405.3269756 | H14: -2.218061086
B15: Cativo Rural | C15: 79.872442 | D15: 96.065212 | E15: -16.8560186 | F15: 373.112235 | G15: 383.101513 | H15: -2.607475476
B16: Livre Rural | C16: 4.139200771 | D16: 4.08274853 | E16: 1.382701888 | F16: 23.22434064 | G16: 22.22546255 | H16: 4.494296047
B17: Outros | C17: 74.07971971 | D17: 77.272617 | E17: -4.13199063 | F17: 329.8154323 | G17: 315.9151393 | H17: 4.400008487
B18: Cativo Outros | C18: 70.052016 | D18: 73.447115 | E18: -4.622508318 | F18: 314.139361 | G18: 301.030602 | H18: 4.35462671
B19: Livre Outros | C19: 4.027703706 | D19: 3.825502 | E19: 5.285625416 | F19: 15.67607128 | G19: 14.88453733 | H19: 5.317826979
B20: 1 Vendas de energia no mercado cativo | C20: 581.940937 | D20: 622.034461 | E20: -6.445547074 | F20: 2440.28201 | G20: 2510.019715 | H20: -2.778372799
B21: 2 Energia associada aos consumidores livres (TUSD) | C21: 163.9547192 | D21: 133.8350542 | E21: 22.50506429 | F21: 634.2497241 | G21: 566.5221859 | H21: 11.95496662
B22: 3 Mercado cativo + TUSD (1+2) | C22: 745.8956562 | D22: 755.8695152 | E22: -1.319521268 | F22: 3074.531734 | G22: 3076.541901 | H22: -0.06533851536
B23: ='Por Segmento'!B23 -> 4 Fornecimento não faturado | C23: 28.839876 | D23: -17.393254 | E23: - | F23: -24.396246 | G23: -9.703161 | H23: 151.425757
B24: 5 Mercado cativo + TUSD + fornecimento não faturado (3+4) | C24: 774.7355322 | D24: 738.4762612 | E24: 4.910011722 | F24: 3050.135488 | G24: 3066.83874 | H24: -0.5446406942

Sheet EMS
B2: Descrição Valores em GWh | C2: Mês | F2: Acumulado
C3: ='Por Segmento'!C3 -> 2021-04-01 | D3: ='Por Segmento'!D3 -> 2020-04-01 | E3: ='Por Segmento'!E3 -> Var. % | F3: ='Por Segmento'!F3 -> 4M21 | G3: ='Por Segmento'!G3 -> 4M20 | H3: ='Por Segmento'!H3 -> Var. %
B7: Residencial | C7: 196.884784 | D7: 186.424409 | E7: =IF(OR(AND(C7<=0,D7>=0),AND(C7>=0,D7<=0),C7=D7),"-",IF((C7/D7-1)*100>0,(C7/D7-1)*100,(C7/D7-1)*100)) -> 5.611054398 | F7: 748.310518 | G7: 750.791452 | H7: =IF(OR(AND(F7<=0,G7>=0),AND(F7>=0,G7<=0),F7=G7),"-",IF((F7/G7-1)*100>0,(F7/G7-1)*100,(F7/G7-1)*100)) -> -0.3304424942
B8: Industrial | C8: 117.4888847 | D8: 96.75330846 | E8: =IF(OR(AND(C8<=0,D8>=0),AND(C8>=0,D8<=0),C8=D8),"-",IF((C8/D8-1)*100>0,(C8/D8-1)*100,(C8/D8-1)*100)) -> 21.43138726 | F8: 465.7450558 | G8: 415.9301921 | H8: =IF(OR(AND(F8<=0,G8>=0),AND(F8>=0,G8<=0),F8=G8),"-",IF((F8/G8-1)*100>0,(F8/G8-1)*100,(F8/G8-1)*100)) -> 11.97673664
B9: Cativo Industrial | C9: 24.799036 | D9: 23.262988 | E9: 6.60296949 | F9: 90.746097 | G9: 92.384781 | H9: -1.773759685
B10: Livre Industrial | C10: 92.68984869 | D10: 73.49032046 | E10: 26.12524766 | F10: 374.9989588 | G10: 323.5454111 | H10: 15.90303739
B11: Comercial | C11: 99.89917286 | D11: 90.81013964 | E11: 10.0088308 | F11: 382.1018498 | G11: 404.9833691 | H11: -5.649989862
B12: Cativo Comercial | C12: 85.00063 | D12: 81.560394 | E12: 4.218022782 | F12: 320.33125 | G12: 355.811778 | H12: -9.971712628
B13: Livre Comercial | C13: 14.89854286 | D13: 9.249745638 | E13: 61.06975746 | F13: 61.77059979 | G13: 49.17159108 | H13: 25.62253616
B14: Rural | C14: 56.90166203 | D14: 55.21606424 | E14: 3.052730781 | F14: 207.3446989 | G14: 208.3873317 | H14: -0.5003340819
B15: Cativo Rural | C15: 55.867549 | D15: 54.548074 | E15: 2.418921335 | F15: 203.54613 | G15: 205.544336 | H15: -0.9721532779
B16: Livre Rural | C16: 1.03411303 | D16: 0.667990241 | E16: 54.80960148 | F16: 3.798568879 | G16: 2.842995722 | H16: 33.61148769
B17: Outros | C17: 56.23661202 | D17: 55.0576424 | E17: 2.141336915 | F17: 220.3003007 | G17: 228.2880522 | H17: -3.498979196
B18: Cativo Outros | C18: 48.851987 | D18: 50.459387 | E18: -3.185532159 | F18: 191.667587 | G18: 209.906119 | H18: -8.688899631
B19: Livre Outros | C19: 7.38462502 | D19: 4.598255399 | E19: 60.59623442 | F19: 28.63271371 | G19: 18.38193316 | H19: 55.76551966
B20: 1 Vendas de energia no mercado cativo | C20: 411.403986 | D20: 396.255252 | E20: 3.822973683 | F20: 1554.601582 | G20: 1614.438466 | H20: -3.706358914
B21: 2 Energia associada aos consumidores livres (TUSD) | C21: 116.0071296 | D21: 88.00631174 | E21: 31.81682917 | F21: 469.2008412 | G21: 393.9419311 | H21: 19.10406184
B22: 3 Mercado cativo + TUSD (1+2) | C22: 527.4111156 | D22: 484.2615637 | E22: 8.910381309 | F22: 2023.802423 | G22: 2008.380397 | H22: 0.767883721
B23: ='Por Segmento'!B23 -> 4 Fornecimento não faturado | C23: 8.203189 | D23: -24.131145 | E23: - | F23: -3.174468 | G23: -12.044991 | H23: -73.64491181
B24: 5 Mercado cativo + TUSD + fornecimento não faturado (3+4) | C24: 535.6143046 | D24: 460.1304187 | E24: 16.40488931 | F24: 2020.627955 | G24: 1996.335406 | H24: 1.2168571

Sheet ETO
B2: Descrição Valores em GWh | C2: Mês | F2: Acumulado
C3: ='Por Segmento'!C3 -> 2021-04-01 | D3: ='Por Segmento'!D3 -> 2020-04-01 | E3: ='Por Segmento'!E3 -> Var. % | F3: ='Por Segmento'!F3 -> 4M21 | G3: ='Por Segmento'!G3 -> 4M20 | H3: ='Por Segmento'!H3 -> Var. %
B7: Residencial | C7: 93.87005 | D7: 90.013892 | E7: =IF(OR(AND(C7<=0,D7>=0),AND(C7>=0,D7<=0),C7=D7),"-",IF((C7/D7-1)*100>0,(C7/D7-1)*100,(C7/D7-1)*100)) -> 4.283958747 | F7: 351.971856 | G7: 343.995099 | H7: =IF(OR(AND(F7<=0,G7>=0),AND(F7>=0,G7<=0),F7=G7),"-",IF((F7/G7-1)*100>0,(F7/G7-1)*100,(F7/G7-1)*100)) -> 2.318857746
B8: Industrial | C8: 33.53299286 | D8: 24.70609398 | E8: =IF(OR(AND(C8<=0,D8>=0),AND(C8>=0,D8<=0),C8=D8),"-",IF((C8/D8-1)*100>0,(C8/D8-1)*100,(C8/D8-1)*100)) -> 35.727618 | F8: 108.7516325 | G8: 94.28483932 | H8: =IF(OR(AND(F8<=0,G8>=0),AND(F8>=0,G8<=0),F8=G8),"-",IF((F8/G8-1)*100>0,(F8/G8-1)*100,(F8/G8-1)*100)) -> 15.34371093
B9: Cativo Industrial | C9: 10.116048 | D9: 8.552723 | E9: 18.27868154 | F9: 26.76809 | G9: 31.848089 | H9: -15.95071842
B10: Livre Industrial | C10: 23.41694486 | D10: 16.15337098 | E10: 44.96630387 | F10: 81.98354251 | G10: 62.43675032 | H10: 31.30654958
B11: Comercial | C11: 35.044111 | D11: 31.50509066 | E11: 11.23316983 | F11: 130.5404849 | G11: 135.7011217 | H11: -3.802943328
B12: Cativo Comercial | C12: 29.970245 | D12: 29.247392 | E12: 2.471512674 | F12: 111.688759 | G12: 123.573693 | H12: -9.617689422
B13: Livre Comercial | C13: 5.073865996 | D13: 2.257698656 | E13: 124.7361924 | F13: 18.85172594 | G13: 12.1274287 | H13: 55.44701531
B14: Rural | C14: 23.56672407 | D14: 18.76835909 | E14: 25.56624667 | F14: 81.46118781 | G14: 75.19634155 | H14: 8.331317891
B15: Cativo Rural | C15: 22.891776 | D15: 18.316995 | E15: 24.97560872 | F15: 79.296357 | G15: 73.511886 | H15: 7.868756081
B16: Livre Rural | C16: 0.674948071 | D16: 0.45136409 | E16: 49.53517259 | F16: 2.164830807 | G16: 1.68445555 | H16: 28.51813199
B17: Outros | C17: 26.52542384 | D17: 26.248296 | E17: 1.055793645 | F17: 109.5336834 | G17: 110.856072 | H17: -1.192887863
B18: Cativo Outros | C18: 23.92921 | D18: 26.248296 | E18: -8.835186863 | F18: 100.694308 | G18: 110.856072 | H18: -9.166628238
B19: Livre Outros | C19: 2.596213841 | D19: 0 | E19: - | F19: 8.839375372 | G19: 0 | H19: -
B20: 1 Vendas de energia no mercado cativo | C20: 180.777329 | D20: 172.379298 | E20: 4.871832695 | F20: 670.41937 | G20: 683.784839 | H20: -1.95463079
B21: 2 Energia associada aos consumidores livres (TUSD) | C21: 31.76197277 | D21: 18.86243373 | E21: 68.38745853 | F21: 111.8394746 | G21: 76.24863456 | H21: 46.67734743
B22: 3 Mercado cativo + TUSD (1+2) | C22: 212.5393018 | D22: 191.2417317 | E22: 11.1364658 | F22: 782.2588446 | G22: 760.0334736 | H22: 2.924262133
B23: ='Por Segmento'!B23 -> 4 Fornecimento não faturado | C23: 9.190647 | D23: -4.537877 | E23: - | F23: 0.63091 | G23: -3.638536 | H23: -
B24: 5 Mercado cativo + TUSD + fornecimento não faturado (3+4) | C24: 221.7299488 | D24: 186.7038547 | E24: 18.7602415 | F24: 782.8897546 | G24: 756.3949376 | H24: 3.502775568

Sheet ESS
B2: Descrição Valores em GWh | C2: Mês | F2: Acumulado
C3: ='Por Segmento'!C3 -> 2021-04-01 | D3: ='Por Segmento'!D3 -> 2020-04-01 | E3: ='Por Segmento'!E3 -> Var. % | F3: ='Por Segmento'!F3 -> 4M21 | G3: ='Por Segmento'!G3 -> 4M20 | H3: ='Por Segmento'!H3 -> Var. %
B7: Residencial | C7: 142.464976 | D7: 132.016147 | E7: =IF(OR(AND(C7<=0,D7>=0),AND(C7>=0,D7<=0),C7=D7),"-",IF((C7/D7-1)*100>0,(C7/D7-1)*100,(C7/D7-1)*100)) -> 7.91481136 | F7: 560.36868 | G7: 533.26854 | H7: =IF(OR(AND(F7<=0,G7>=0),AND(F7>=0,G7<=0),F7=G7),"-",IF((F7/G7-1)*100>0,(F7/G7-1)*100,(F7/G7-1)*100)) -> 5.081893637
B8: Industrial | C8: 107.0663508 | D8: 81.33229368 | E8: =IF(OR(AND(C8<=0,D8>=0),AND(C8>=0,D8<=0),C8=D8),"-",IF((C8/D8-1)*100>0,(C8/D8-1)*100,(C8/D8-1)*100)) -> 31.64063861 | F8: 457.4861108 | G8: 423.9926354 | H8: =IF(OR(AND(F8<=0,G8>=0),AND(F8>=0,G8<=0),F8=G8),"-",IF((F8/G8-1)*100>0,(F8/G8-1)*100,(F8/G8-1)*100)) -> 7.899541776
B9: Cativo Industrial | C9: 23.054867 | D9: 20.16739 | E9: 14.31755423 | F9: 92.486049 | G9: 118.807755 | H9: -22.15487196
B10: Livre Industrial | C10: 84.01148379 | D10: 61.16490368 | E10: 37.35243373 | F10: 365.0000618 | G10: 305.1848804 | H10: 19.59965424
B11: Comercial | C11: 67.01765599 | D11: 57.86817593 | E11: 15.8109011 | F11: 274.5928529 | G11: 277.6903384 | H11: -1.115445901
B12: Cativo Comercial | C12: 56.526903 | D12: 51.376678 | E12: 10.02444144 | F12: 230.3725 | G12: 243.950302 | H12: -5.565806596
B13: Livre Comercial | C13: 10.49075299 | D13: 6.491497927 | E13: 61.6075844 | F13: 44.22035287 | G13: 33.74003637 | H13: 31.06195971
B14: Rural | C14: 31.020803 | D14: 28.369452 | E14: 9.345795611 | F14: 112.643288 | G14: 108.929311 | H14: 3.409529507
B15: Cativo Rural | C15: 31.020803 | D15: 28.369452 | E15: 9.345795611 | F15: 112.643288 | G15: 108.929311 | H15: 3.409529507
B16: Livre Rural | C16: 0 | D16: 0 | E16: - | F16: 0 | G16: 0 | H16: -
B17: Outros | C17: 40.23999174 | D17: 38.61411358 | E17: 4.210580035 | F17: 164.9357128 | G17: 159.2725486 | H17: 3.555643613
B18: Cativo Outros | C18: 38.191187 | D18: 37.896313 | E18: 0.7781073584 | F18: 156.551988 | G18: 156.423058 | H18: 0.08242390965
B19: Livre Outros | C19: 2.048804736 | D19: 0.717800579 | E19: 185.4281253 | F19: 8.383724784 | G19: 2.849490583 | H19: 194.2183713
B20: 1 Vendas de energia no mercado cativo | C20: 291.258736 | D20: 269.82598 | E20: 7.943177303 | F20: 1152.422505 | G20: 1161.378966 | H20: -0.7711919418
B21: 2 Energia associada aos consumidores livres (TUSD) | C21: 96.55104152 | D21: 68.37420218 | E21: 41.20975227 | F21: 417.6041394 | G21: 341.7744074 | H21: 22.18707148
B22: 3 Mercado cativo + TUSD (1+2) | C22: 387.8097775 | D22: 338.2001822 | E22: 14.66870745 | F22: 1570.026644 | G22: 1503.153373 | H22: 4.448865448
B23: ='Por Segmento'!B23 -> 4 Fornecimento não faturado | C23: 0.353965 | D23: -11.192866 | E23: - | F23: -9.26697 | G23: -9.917152 | H23: -6.556136278
B24: 5 Mercado cativo + TUSD + fornecimento não faturado (3+4) | C24: 388.1637425 | D24: 327.0073162 | E24: 18.70185262 | F24: 1560.759674 | G24: 1493.236221 | H24: 4.521953868

Sheet EAC
B2: Descrição Valores em GWh | C2: Mês | F2: Acumulado
C3: ='Por Segmento'!C3 -> 2021-04-01 | D3: ='Por Segmento'!D3 -> 2020-04-01 | E3: ='Por Segmento'!E3 -> Var. % | F3: ='Por Segmento'!F3 -> 4M21 | G3: ='Por Segmento'!G3 -> 4M20 | H3: ='Por Segmento'!H3 -> Var. %
B7: Residencial | C7: 43.717956 | D7: 44.226447 | E7: =IF(OR(AND(C7<=0,D7>=0),AND(C7>=0,D7<=0),C7=D7),"-",IF((C7/D7-1)*100>0,(C7/D7-1)*100,(C7/D7-1)*100)) -> -1.149744179 | F7: 181.776477 | G7: 176.665945 | H7: =IF(OR(AND(F7<=0,G7>=0),AND(F7>=0,G7<=0),F7=G7),"-",IF((F7/G7-1)*100>0,(F7/G7-1)*100,(F7/G7-1)*100)) -> 2.892765779
B8: Industrial | C8: 3.117984457 | D8: 3.13701865 | E8: =IF(OR(AND(C8<=0,D8>=0),AND(C8>=0,D8<=0),C8=D8),"-",IF((C8/D8-1)*100>0,(C8/D8-1)*100,(C8/D8-1)*100)) -> -0.6067605942 | F8: 12.40037889 | G8: 12.86352292 | H8: =IF(OR(AND(F8<=0,G8>=0),AND(F8>=0,G8<=0),F8=G8),"-",IF((F8/G8-1)*100>0,(F8/G8-1)*100,(F8/G8-1)*100)) -> -3.600444767
B9: Cativo Industrial | C9: 2.458379 | D9: 2.670679 | E9: -7.949289301 | F9: 9.835325 | G9: 11.860517 | H9: -17.07507354
B10: Livre Industrial | C10: 0.659605457 | D10: 0.46633965 | E10: 41.44314278 | F10: 2.565053887 | G10: 1.003005925 | H10: 155.7366635
B11: Comercial | C11: 19.35658441 | D11: 17.71808925 | E11: 9.247583857 | F11: 78.2437035 | G11: 84.51383816 | H11: -7.41906272
B12: Cativo Comercial | C12: 15.70659 | D12: 15.317 | E12: 2.543513743 | F12: 64.43533 | G12: 72.332358 | H12: -10.91769744
B13: Livre Comercial | C13: 3.649994408 | D13: 2.401089247 | E13: 52.01410829 | F13: 13.8083735 | G13: 12.18148016 | H13: 13.35546517
B14: Rural | C14: 4.502201 | D14: 4.707769 | E14: -4.366569388 | F14: 18.843708 | G14: 18.472478 | H14: 2.009638339
B15: Cativo Rural | C15: 4.502201 | D15: 4.707769 | E15: -4.366569388 | F15: 18.843708 | G15: 18.472478 | H15: 2.009638339
B16: Livre Rural | C16: 0 | D16: 0 | E16: - | F16: 0 | G16: 0 | H16: -
B17: Outros | C17: 15.740853 | D17: 16.22701 | E17: -2.995973996 | F17: 59.54778 | G17: 72.089734 | H17: -17.39769771
B18: Cativo Outros | C18: 15.740853 | D18: 16.22701 | E18: -2.995973996 | F18: 59.54778 | G18: 72.089734 | H18: -17.39769771
B19: Livre Outros | C19: 0 | D19: 0 | E19: - | F19: 0 | G19: 0 | H19: -
B20: 1 Vendas de energia no mercado cativo | C20: 82.125979 | D20: 83.148905 | E20: -1.23023388 | F20: 334.43862 | G20: 351.421032 | H20: -4.832497333
B21: 2 Energia associada aos consumidores livres (TUSD) | C21: 4.309599865 | D21: 2.867428897 | E21: 50.29491645 | F21: 16.37342739 | G21: 13.18448609 | H21: 24.18707321
B22: 3 Mercado cativo + TUSD (1+2) | C22: 86.43557886 | D22: 86.0163339 | E22: 0.4874015771 | F22: 350.8120474 | G22: 364.6055181 | H22: -3.783121761
B23: ='Por Segmento'!B23 -> 4 Fornecimento não faturado | C23: 0.533073 | D23: -3.672779 | E23: - | F23: -7.516751 | G23: -4.917795 | H23: 52.84799387
B24: 5 Mercado cativo + TUSD + fornecimento não faturado (3+4) | C24: 86.96865186 | D24: 82.3435549 | E24: 5.616829361 | F24: 343.2952964 | G24: 359.6877231 | H24: -4.557405117

Sheet ERO
B2: Descrição Valores em GWh | C2: Mês | F2: Acumulado
C3: ='Por Segmento'!C3 -> 2021-04-01 | D3: ='Por Segmento'!D3 -> 2020-04-01 | E3: ='Por Segmento'!E3 -> Var. % | F3: ='Por Segmento'!F3 -> 4M21 | G3: ='Por Segmento'!G3 -> 4M20 | H3: ='Por Segmento'!H3 -> Var. %
B7: Residencial | C7: 120.227119 | D7: 111.929606 | E7: =IF(OR(AND(C7<=0,D7>=0),AND(C7>=0,D7<=0),C7=D7),"-",IF((C7/D7-1)*100>0,(C7/D7-1)*100,(C7/D7-1)*100)) -> 7.413153049 | F7: 444.167486 | G7: 446.38355 | H7: =IF(OR(AND(F7<=0,G7>=0),AND(F7>=0,G7<=0),F7=G7),"-",IF((F7/G7-1)*100>0,(F7/G7-1)*100,(F7/G7-1)*100)) -> -0.4964484018
B8: Industrial | C8: 37.74658841 | D8: 35.78542785 | E8: =IF(OR(AND(C8<=0,D8>=0),AND(C8>=0,D8<=0),C8=D8),"-",IF((C8/D8-1)*100>0,(C8/D8-1)*100,(C8/D8-1)*100)) -> 5.480332841 | F8: 138.7020278 | G8: 148.1381339 | H8: =IF(OR(AND(F8<=0,G8>=0),AND(F8>=0,G8<=0),F8=G8),"-",IF((F8/G8-1)*100>0,(F8/G8-1)*100,(F8/G8-1)*100)) -> -6.369802239
B9: Cativo Industrial | C9: 23.203133 | D9: 22.609758 | E9: 2.624419952 | F9: 80.891207 | G9: 93.935731 | H9: -13.88664767
B10: Livre Industrial | C10: 14.54345541 | D10: 13.17566985 | E10: 10.38114624 | F10: 57.81082077 | G10: 54.20240294 | H10: 6.657302318
B11: Comercial | C11: 53.89762862 | D11: 50.00729521 | E11: 7.779531751 | F11: 198.4659314 | G11: 226.6319299 | H11: -12.42808042
B12: Cativo Comercial | C12: 49.297508 | D12: 47.746963 | E12: 3.247421202 | F12: 180.604653 | G12: 213.70218 | H12: -15.48768805
B13: Livre Comercial | C13: 4.60012062 | D13: 2.260332211 | E13: 103.5152442 | F13: 17.86127838 | G13: 12.92974988 | H13: 38.14094276
B14: Rural | C14: 30.32294 | D14: 28.20905 | E14: 7.49365895 | F14: 114.743914 | G14: 111.531563 | H14: 2.880216966
B15: Cativo Rural | C15: 30.32294 | D15: 28.20905 | E15: 7.49365895 | F15: 114.743914 | G15: 111.531563 | H15: 2.880216966
B16: Livre Rural | C16: 0 | D16: 0 | E16: - | F16: 0 | G16: 0 | H16: -
B17: Outros | C17: 32.090966 | D17: 31.52523 | E17: 1.794549953 | F17: 131.086791 | G17: 131.159845 | H17: -0.05569844948
B18: Cativo Outros | C18: 32.090966 | D18: 31.52523 | E18: 1.794549953 | F18: 131.086791 | G18: 131.159845 | H18: -0.05569844948
B19: Livre Outros | C19: 0 | D19: 0 | E19: - | F19: 0 | G19: 0 | H19: -
B20: 1 Vendas de energia no mercado cativo | C20: 255.141666 | D20: 242.020607 | E20: 5.421463553 | F20: 951.494051 | G20: 996.712869 | H20: -4.536794839
B21: 2 Energia associada aos consumidores livres (TUSD) | C21: 19.14357603 | D21: 15.43600206 | E21: 24.01900407 | F21: 75.67209914 | G21: 67.13215282 | H21: 12.72109707
B22: 3 Mercado cativo + TUSD (1+2) | C22: 274.285242 | D22: 257.4566091 | E22: 6.536492897 | F22: 1027.16615 | G22: 1063.845022 | H22: -3.447764564
B23: ='Por Segmento'!B23 -> 4 Fornecimento não faturado | C23: 4.433697 | D23: -7.28774 | E23: - | F23: 18.506583 | G23: -12.407074 | H23: -
B24: 5 Mercado cativo + TUSD + fornecimento não faturado (3+4) | C24: 278.718939 | D24: 250.1688691 | E24: 11.41231923 | F24: 1045.672733 | G24: 1051.437948 | H24: -0.5483171579
